bitfinex/quotes_BTCUSD_20250423
["timestamp","ask_amount","ask_price","bid_price","bid_amount"]
[1745426350023,0.11062871,93632.0,93631.0,0.001]
[1745426350283,0.10689014,93632.0,93631.0,0.001]
[1745426351157,0.12189547,93632.0,93631.0,0.001]
[1745426351882,0.10735462,93632.0,93631.0,0.001]
[1745426352087,0.21455462,93632.0,93631.0,0.001]
[1745426352283,0.22455462,93632.0,93631.0,0.001]
[1745426352488,0.11735462,93632.0,93631.0,0.001]
[1745426355575,0.12109316,93632.0,93631.0,0.001]
[1745426355828,0.12109323,93632.0,93631.0,0.001]
[1745426356048,0.12095814,93632.0,93631.0,0.001]
[1745426356922,0.11721953,93632.0,93631.0,0.001]
[1745426358439,0.12095831,93632.0,93631.0,0.001]
[1745426359257,0.11721953,93632.0,93631.0,0.001]
[1745426360755,0.12095816,93632.0,93631.0,0.001]
[1745426362410,0.13549901,93632.0,93631.0,0.001]
[1745426362835,0.13176038,93632.0,93631.0,0.001]
[1745426364621,0.96222107,93703.0,93668.0,0.1]
[1745426364849,0.0004241,93720.0,93706.0,0.01067167]
[1745426365071,0.0004241,93720.0,93705.0,0.001]
[1745426365297,0.1076641,93720.0,93705.0,0.101]
[1745426365611,0.06689417,93709.0,93708.0,0.441]
[1745426365827,0.06689417,93709.0,93708.0,0.001]
[1745426366053,0.17413417,93709.0,93708.0,0.001]
[1745426366531,0.17413417,93709.0,93699.0,0.001]
[1745426366793,0.17413417,93709.0,93695.0,0.00013886]
[1745426367035,0.10724,93708.0,93695.0,0.00013886]
[1745426367255,0.10724,93707.0,93695.0,0.00013886]
[1745426367479,0.32385587,93706.0,93695.0,0.00013886]
[1745426367707,0.00373587,93705.0,93695.0,0.00013886]
[1745426368161,0.0486,93703.0,93695.0,0.00013886]
[1745426368386,0.5529963,93680.0,93660.0,0.1]
[1745426368611,0.5529963,93680.0,93656.0,0.001]
[1745426368612,0.11093687,93679.0,93656.0,0.001]
[1745426368835,0.11093687,93679.0,93639.0,0.00013891]
[1745426368836,0.5529963,93670.0,93652.0,0.001]
[1745426369307,0.11062715,93669.0,93647.0,0.1]
[1745426369532,0.1072,93668.0,93666.0,0.1]
[1745426369755,0.1072,93667.0,93666.0,0.1]
[1745426370439,0.1072,93667.0,93666.0,0.101]
[1745426370703,0.1072,93667.0,93666.0,0.1]
[1745426370933,0.21409014,93667.0,93648.0,0.001]
[1745426371169,0.10689014,93666.0,93653.0,0.001]
[1745426371393,0.10689014,93666.0,93655.0,0.1]
[1745426372345,0.1072,93665.0,93657.0,0.001]
[1745426372565,0.1072,93664.0,93655.0,0.1]
[1745426372783,0.1072,93664.0,93646.0,0.1]
[1745426372784,0.1072,93663.0,93646.0,0.1]
[1745426372993,0.11062743,93662.0,93644.0,0.001]
[1745426373463,0.1072,93661.0,93648.0,0.1]
[1745426373670,0.10689014,93660.0,93648.0,0.1]
[1745426375839,0.1072,93659.0,93648.0,0.1]
[1745426376047,0.10689014,93658.0,93648.0,0.1]
[1745426376468,0.10689014,93658.0,93645.0,0.34]
[1745426376914,0.10689014,93658.0,93639.0,0.00013891]
[1745426376915,0.02514648,93657.0,93639.0,0.00013891]
[1745426377153,0.01454085,93650.0,93639.0,0.00013891]
[1745426377367,0.22812478,93640.0,93639.0,0.00013891]
[1745426377583,0.01454085,93640.0,93639.0,0.00013891]
[1745426377791,0.0182797,93640.0,93639.0,0.00013891]
[1745426379280,0.10689014,93640.0,93639.0,0.00013891]
[1745426379487,0.21405014,93640.0,93639.0,0.00013891]
[1745426380110,0.11062869,93640.0,93639.0,0.00013891]
[1745426380293,0.21778869,93640.0,93639.0,0.00013891]
[1745426380505,0.23232954,93640.0,93639.0,0.00013891]
[1745426380707,0.01454085,93639.0,93587.0,0.08679284]
[1745426380917,0.12143099,93637.0,93593.0,0.00131408]
[1745426381208,0.01454085,93635.0,93593.0,0.00131408]
[1745426381426,0.01454085,93633.0,93593.0,0.00131408]
[1745426381586,0.10689014,93632.0,93593.0,0.00131408]
[1745426381827,0.00373898,93631.0,93593.0,0.00131408]
[1745426382013,0.10689014,93630.0,93593.0,0.00131408]
[1745426382229,0.00373898,93629.0,93593.0,0.00131408]
[1745426382543,0.10689014,93628.0,93593.0,0.00131408]
[1745426382840,0.00373898,93627.0,93593.0,0.00131408]
[1745426383084,0.01454085,93625.0,93593.0,0.00131408]
[1745426383313,0.01454085,93623.0,93593.0,0.00131408]
[1745426383527,0.11062954,93622.0,93593.0,0.00131408]
[1745426383733,0.01216924,93621.0,93593.0,0.00131408]
[1745426383933,0.11062954,93620.0,93593.0,0.00131408]
[1745426384166,0.01454085,93619.0,93593.0,0.00131408]
[1745426384367,0.12143099,93616.0,93593.0,0.00131408]
[1745426384579,0.01454085,93614.0,93593.0,0.00131408]
[1745426384808,0.2175201,93613.0,93593.0,0.00131408]
[1745426385451,0.10689014,93613.0,93593.0,0.00131408]
[1745426385896,0.08679284,93639.0,93593.0,0.00131408]
[1745426385897,0.10716,93612.0,93593.0,0.00131408]
[1745426386167,0.10689014,93630.0,93597.0,0.0106841]
[1745426386379,0.1072,93629.0,93609.0,0.34]
[1745426386584,0.10689014,93628.0,93609.0,0.34]
[1745426387218,0.10689014,93628.0,93602.0,0.01068353]
[1745426387862,0.10689014,93628.0,93603.0,0.35068341]
[1745426388069,0.10689014,93628.0,93604.0,0.0106833]
[1745426388279,0.10689014,93628.0,93603.0,0.35068341]
[1745426388926,0.10689014,93628.0,93603.0,0.56435145]
[1745426389136,0.10689014,93628.0,93603.0,0.34]
[1745426389346,0.10689014,93628.0,93603.0,0.35068341]
[1745426389777,0.10689014,93628.0,93603.0,0.34]
[1745426390011,0.10689014,93628.0,93603.0,0.35068341]
[1745426390645,0.10689014,93628.0,93601.0,0.34]
[1745426391080,0.10689014,93628.0,93603.0,0.35068341]
[1745426391321,0.1072,93634.0,93616.0,0.22431982]
[1745426391539,0.1072,93634.0,93617.0,0.34]
[1745426391983,0.1072,93634.0,93621.0,0.01068136]
[1745426392201,0.1072,93639.0,93629.0,0.01068045]
[1745426392424,0.1072,93639.0,93628.0,0.01068056]
[1745426392678,0.409,93671.0,93639.0,0.01067931]
[1745426392679,0.1072,93652.0,93639.0,0.01067931]
[1745426392890,0.1072,93652.0,93636.0,0.22427125]
[1745426393109,0.1072,93652.0,93635.0,0.01067976]
[1745426393533,0.1072,93652.0,93638.0,0.01067942]
[1745426393956,0.1072,93652.0,93635.0,0.01081869]
[1745426394156,0.10697785,93652.0,93635.0,0.00013893]
[1745426395003,0.11062772,93651.0,93635.0,0.00013893]
[1745426395844,0.10689014,93651.0,93635.0,0.00013893]
[1745426396903,0.10689014,93651.0,93636.0,0.21359306]
[1745426397111,0.1072,93650.0,93636.0,0.22427271]
[1745426397347,0.1072,93650.0,93635.0,0.00013893]
[1745426398802,0.0004252,93666.0,93642.0,0.01067896]
[1745426399013,0.1072,93660.0,93643.0,0.00196096]
[1745426399216,0.1072,93660.0,93643.0,0.01067885]
[1745426399429,0.1072,93660.0,93637.0,0.34]
[1745426400147,0.1072,93660.0,93637.0,0.35067953]
[1745426400373,0.11062735,93656.0,93635.0,0.00013893]
[1745426400608,0.15335535,93656.0,93635.0,0.00013893]
[1745426400820,0.1974208,93656.0,93635.0,0.00013893]
[1745426401263,0.01454085,93636.0,93635.0,0.00013893]
[1745426401491,0.23237005,93636.0,93635.0,0.00013893]
[1745426401704,0.22863099,93636.0,93635.0,0.00013893]
[1745426403883,0.21409014,93636.0,93635.0,0.00013893]
[1745426405810,0.10689014,93636.0,93635.0,0.00013893]
[1745426406015,0.1072,93636.0,93635.0,0.00013893]
[1745426406221,0.21409014,93636.0,93635.0,0.00013893]
[1745426408356,0.22863099,93636.0,93635.0,0.00013893]
[1745426408567,0.25528383,93636.0,93635.0,0.00013893]
[1745426410969,0.66408269,93636.0,93635.0,0.00013893]
[1745426411176,0.01454085,93633.0,93593.0,0.0008496]
[1745426411630,0.01454085,93621.0,93593.0,0.00131408]
[1745426411838,0.01454085,93619.0,93593.0,0.00131408]
[1745426412055,0.11062976,93618.0,93593.0,0.00131408]
[1745426412940,0.12143099,93615.0,93593.0,0.00131408]
[1745426413151,0.01454085,93609.0,93593.0,0.00131408]
[1745426413357,0.11063017,93608.0,93593.0,0.00131408]
[1745426413569,0.0280131,93607.0,93593.0,0.00131408]
[1745426413783,0.01454085,93602.0,93593.0,0.00131408]
[1745426414003,0.11063045,93601.0,93593.0,0.00131408]
[1745426414219,0.10689014,93601.0,93593.0,0.00131408]
[1745426414775,0.00374031,93600.0,93593.0,0.00131408]
[1745426414951,0.10689014,93599.0,93593.0,0.00131408]
[1745426416248,0.00374031,93598.0,93593.0,0.00131408]
[1745426416458,0.10689014,93597.0,93593.0,0.00131408]
[1745426416672,0.00374046,93596.0,93593.0,0.00131408]
[1745426416885,0.10689014,93595.0,93593.0,0.00131408]
[1745426417115,0.07499584,93594.0,93593.0,0.00131408]
[1745426417322,0.58257153,93594.0,93593.0,0.00131408]
[1745426417528,0.57883099,93594.0,93593.0,0.00131408]
[1745426418330,0.01454085,93589.0,93583.0,0.0008502]
[1745426418552,0.15309014,93584.0,93583.0,0.0008502]
[1745426418779,0.15309014,93584.0,93582.0,0.0008496]
[1745426418780,0.01554085,93583.0,93582.0,0.0008496]
[1745426418927,0.60628231,93583.0,93582.0,0.0008496]
[1745426419200,0.01554085,93577.0,93571.0,0.002]
[1745426419372,0.5351729,93577.0,93571.0,0.002]
[1745426419582,0.53043099,93577.0,93571.0,0.002]
[1745426419789,0.62309014,93577.0,93571.0,0.002]
[1745426420014,0.00046445,93594.0,93576.0,0.0115337]
[1745426420218,0.21409014,93593.0,93583.0,0.0106857]
[1745426420424,0.21409014,93593.0,93576.0,0.0115337]
[1745426420425,0.21409014,93593.0,93576.0,0.0008472]
[1745426420580,0.28664571,93593.0,93576.0,0.0008472]
[1745426420780,0.00374029,93592.0,93576.0,0.0008472]
[1745426421002,0.10689014,93591.0,93576.0,0.0008472]
[1745426421442,0.1072,93593.0,93588.0,0.21370068]
[1745426421610,0.10689014,93592.0,93583.0,0.0106857]
[1745426421812,0.10689014,93592.0,93581.0,0.22440303]
[1745426422031,0.10689014,93592.0,93580.0,0.56484466]
[1745426422355,0.10689014,93592.0,93576.0,0.0008472]
[1745426422356,0.00374005,93591.0,93576.0,0.0008472]
[1745426422674,0.10689014,93590.0,93576.0,0.0008472]
[1745426422908,0.00374038,93589.0,93576.0,0.0008472]
[1745426423110,0.10683196,93588.0,93576.0,0.0008472]
[1745426423315,0.00374045,93587.0,93576.0,0.0008472]
[1745426423523,0.12866738,93586.0,93576.0,0.0008472]
[1745426423726,0.00374069,93585.0,93576.0,0.0008472]
[1745426423904,0.10689014,93584.0,93576.0,0.0008472]
[1745426424155,0.00374069,93583.0,93576.0,0.0008472]
[1745426424371,0.10689014,93582.0,93576.0,0.0008472]
[1745426424577,0.00374087,93581.0,93576.0,0.0008472]
[1745426424790,0.11795324,93580.0,93576.0,0.0008472]
[1745426424996,0.00374111,93579.0,93576.0,0.0008472]
[1745426425213,0.10689014,93578.0,93576.0,0.0008472]
[1745426427251,0.10689014,93578.0,93557.0,0.3336968]
[1745426427490,0.10689014,93578.0,93555.0,0.0008494]
[1745426427701,0.01068901,93577.0,93555.0,0.0008494]
[1745426427913,0.10689014,93576.0,93555.0,0.0008494]
[1745426428128,0.10689014,93576.0,93550.0,0.04930797]
[1745426428340,0.10689014,93576.0,93553.0,0.21378224]
[1745426428549,0.10689014,93576.0,93551.0,0.01068935]
[1745426428748,0.01175791,93575.0,93552.0,0.01068924]
[1745426428962,0.10689014,93574.0,93552.0,0.01068924]
[1745426429186,0.10689014,93574.0,93553.0,0.01068912]
[1745426429403,0.10689014,93574.0,93553.0,0.22447103]
[1745426429620,0.10689014,93574.0,93554.0,0.01068901]
[1745426429827,0.01068901,93573.0,93548.0,0.0005]
[1745426430054,0.10689014,93572.0,93548.0,0.0005]
[1745426430266,0.11094141,93571.0,93548.0,0.0005]
[1745426430480,0.10689014,93570.0,93548.0,0.0005]
[1745426430898,0.0037414,93569.0,93548.0,0.0005]
[1745426431099,0.10689014,93568.0,93548.0,0.0005]
[1745426431316,0.03013456,93567.0,93548.0,0.0005]
[1745426431519,0.01454085,93562.0,93548.0,0.0005]
[1745426431723,0.01828285,93561.0,93548.0,0.0005]
[1745426431930,0.10689014,93560.0,93548.0,0.0005]
[1745426432139,0.01454085,93558.0,93548.0,0.0005]
[1745426432348,0.12460356,93557.0,93548.0,0.0005]
[1745426432968,0.12143099,93556.0,93548.0,0.0005]
[1745426433180,0.01454085,93550.0,93548.0,0.0005]
[1745426433393,0.21787245,93549.0,93548.0,0.0005]
[1745426434573,0.2324133,93549.0,93548.0,0.0005]
[1745426434789,0.25834641,93549.0,93548.0,0.0005]
[1745426434997,0.15110641,93549.0,93548.0,0.0005]
[1745426435216,0.15484902,93549.0,93548.0,0.0005]
[1745426435415,0.26208902,93549.0,93548.0,0.0005]
[1745426435625,0.25934641,93549.0,93548.0,0.0005]
[1745426435825,0.33337287,93549.0,93548.0,0.0005]
[1745426436029,0.33337287,93549.0,93538.0,0.0008498]
[1745426436030,0.40554085,93546.0,93545.0,0.00536085]
[1745426436238,1.05334759,93546.0,93545.0,0.00536085]
[1745426437044,0.06554085,93539.0,93538.0,0.0008498]
[1745426437244,0.97447458,93539.0,93538.0,0.0008498]
[1745426437446,0.97073099,93539.0,93538.0,0.0008498]
[1745426438329,0.01554085,93532.0,93531.0,0.002]
[1745426438500,0.01554085,93532.0,93530.0,0.0008482]
[1745426438501,0.40554085,93531.0,93530.0,0.0008482]
[1745426438712,0.61938055,93528.0,93520.0,0.0008474]
[1745426438983,0.06554085,93521.0,93520.0,0.0008474]
[1745426439185,0.61963099,93521.0,93520.0,0.0008474]
[1745426439399,0.66473099,93521.0,93520.0,0.0008474]
[1745426439610,0.01454085,93511.0,93463.0,0.08679284]
[1745426439820,0.01454085,93495.0,93463.0,0.08679284]
[1745426439947,0.01454085,93493.0,93463.0,0.08679284]
[1745426440147,0.21783475,93494.0,93463.0,0.08679284]
[1745426440148,0.01454085,93491.0,93463.0,0.08679284]
[1745426440359,0.01454085,93489.0,93463.0,0.08679284]
[1745426440561,0.01454085,93487.0,93456.0,0.01070022]
[1745426440756,0.01454085,93485.0,93454.0,0.00085]
[1745426441052,0.0182856,93484.0,93454.0,0.00085]
[1745426441252,0.01454085,93482.0,93454.0,0.00085]
[1745426441452,0.01454085,93480.0,93454.0,0.00085]
[1745426441666,0.01454085,93478.0,93454.0,0.00085]
[1745426441947,0.21413014,93477.0,93460.0,0.55415862]
[1745426442189,0.21413014,93477.0,93461.0,0.34]
[1745426442384,0.00374474,93476.0,93454.0,0.00085]
[1745426442616,0.10689014,93475.0,93454.0,0.00085]
[1745426442828,0.01454085,93467.0,93454.0,0.00085]
[1745426443040,0.01454085,93465.0,93454.0,0.00085]
[1745426443268,0.01454085,93463.0,93454.0,0.00085]
[1745426443489,0.16033588,93464.0,93454.0,0.00085]
[1745426443490,0.01454085,93461.0,93454.0,0.00085]
[1745426443712,0.10689014,93461.0,93454.0,0.00085]
[1745426443923,0.10724,93475.0,93454.0,0.00185]
[1745426444145,0.10689014,93474.0,93461.0,0.34]
[1745426444361,0.21413014,93475.0,93461.0,0.34]
[1745426444996,0.23558951,93475.0,93461.0,0.34]
[1745426445218,0.12834951,93475.0,93455.0,0.0481]
[1745426445663,0.10689014,93475.0,93461.0,0.34]
[1745426446309,0.00046359,93477.0,93461.0,0.33]
[1745426446310,0.10689014,93474.0,93461.0,0.33]
[1745426446736,0.00374494,93473.0,93454.0,0.00185]
[1745426446977,0.10689014,93472.0,93454.0,0.00185]
[1745426447413,0.00374502,93471.0,93454.0,0.00185]
[1745426447625,0.10689014,93470.0,93454.0,0.00185]
[1745426449605,0.00420861,93477.0,93466.0,0.34]
[1745426449606,0.00046359,93477.0,93466.0,0.34]
[1745426449820,0.00046359,93477.0,93461.0,0.34]
[1745426449821,0.00420783,93477.0,93461.0,0.34]
[1745426450035,0.1176605,93476.0,93461.0,0.34]
[1745426450270,0.1176605,93476.0,93451.0,0.00758169]
[1745426450477,0.12140532,93476.0,93451.0,0.34758169]
[1745426451362,0.12140532,93476.0,93451.0,0.00758169]
[1745426451579,0.10689014,93476.0,93451.0,0.34758169]
[1745426451794,0.1106352,93476.0,93451.0,0.34758169]
[1745426452009,0.10689014,93476.0,93451.0,0.34758169]
[1745426452722,0.00374506,93475.0,93451.0,0.00758169]
[1745426452950,0.10689014,93474.0,93451.0,0.34758169]
[1745426453191,0.02183388,93473.0,93451.0,0.34758169]
[1745426453443,0.10689014,93472.0,93451.0,0.34758169]
[1745426453865,0.10689014,93472.0,93457.0,0.34]
[1745426454106,0.10689014,93472.0,93460.0,0.55415862]
[1745426454327,0.10689014,93472.0,93457.0,0.34]
[1745426454783,0.10689014,93472.0,93463.0,0.01069942]
[1745426455001,0.00046359,93477.0,93465.0,0.01069919]
[1745426455207,0.00046359,93477.0,93468.0,0.01069884]
[1745426455458,0.00046359,93477.0,93471.0,0.0106985]
[1745426455683,0.00046359,93477.0,93473.0,0.01069827]
[1745426455905,0.00046359,93477.0,93473.0,0.34]
[1745426456408,0.00046359,93477.0,93476.0,0.34]
[1745426458470,0.00046359,93477.0,93476.0,0.55395866]
[1745426459173,0.00046359,93477.0,93476.0,0.56063933]
[1745426459836,0.00046359,93477.0,93476.0,0.00668067]
[1745426460280,0.10735373,93477.0,93475.0,0.34]
[1745426460491,0.12217551,93476.0,93475.0,0.34]
[1745426460914,0.12217551,93476.0,93458.0,0.00558073]
[1745426461339,0.10689014,93476.0,93460.0,0.90485838]
[1745426461572,0.00046359,93477.0,93465.0,0.01069919]
[1745426461787,0.00046359,93477.0,93466.0,0.01069907]
[1745426462010,0.00046359,93477.0,93466.0,0.00668154]
[1745426462224,0.01077436,93476.0,93467.0,0.00668154]
[1745426462432,0.00046359,93477.0,93468.0,0.34]
[1745426462647,0.00046359,93477.0,93475.0,0.34]
[1745426462866,0.00046359,93477.0,93476.0,0.2206402]
[1745426464210,0.00046359,93477.0,93476.0,0.00668154]
[1745426466052,0.00046359,93477.0,93476.0,0.34668154]
[1745426466483,0.00046359,93477.0,93476.0,0.5606402]
[1745426466787,0.00046359,93477.0,93476.0,0.34668154]
[1745426470709,0.00046359,93477.0,93476.0,0.35467831]
[1745426471368,0.00046359,93477.0,93476.0,0.34668154]
[1745426473441,0.00046359,93477.0,93476.0,0.35468301]
[1745426474614,0.00046359,93477.0,93476.0,0.33868301]
[1745426477841,0.00046359,93477.0,93476.0,0.00800147]
[1745426478040,0.10735373,93477.0,93476.0,0.00800147]
[1745426478278,0.1229191,93477.0,93476.0,0.00800147]
[1745426478613,0.1229191,93477.0,93461.0,0.34]
[1745426479262,0.1229191,93477.0,93453.0,0.01070056]
[1745426479263,0.11063473,93476.0,93451.0,0.55601501]
[1745426479472,0.10689014,93476.0,93457.0,0.0107001]
[1745426479679,0.10689014,93476.0,93456.0,0.34]
[1745426480053,0.10689014,93476.0,93451.0,0.002]
[1745426480258,0.10689014,93476.0,93453.0,0.01070056]
[1745426480551,0.10689014,93476.0,93453.0,0.34]
[1745426480768,0.10689014,93476.0,93451.0,0.22671617]
[1745426480970,0.10689014,93476.0,93452.0,0.35070068]
[1745426481171,0.11063486,93476.0,93452.0,0.34]
[1745426481303,0.01749638,93475.0,93452.0,0.34]
[1745426481510,0.11063509,93474.0,93452.0,0.34]
[1745426481914,0.11063509,93474.0,93451.0,0.342]
[1745426482417,0.10689014,93474.0,93452.0,0.01070068]
[1745426482620,0.10689014,93474.0,93451.0,0.35270079]
[1745426482838,0.11063509,93474.0,93451.0,0.342]
[1745426483442,0.11063509,93474.0,93451.0,0.002]
[1745426483672,0.10689014,93474.0,93451.0,0.002]
[1745426483883,0.01556537,93473.0,93451.0,0.002]
[1745426484093,0.10689014,93472.0,93451.0,0.002]
[1745426484295,0.10724,93471.0,93451.0,0.002]
[1745426484495,0.10689014,93470.0,93451.0,0.002]
[1745426484723,0.00374529,93469.0,93451.0,0.002]
[1745426484947,0.13023422,93468.0,93451.0,0.002]
[1745426485276,0.00374532,93467.0,93451.0,0.002]
[1745426485482,0.10689014,93466.0,93451.0,0.002]
[1745426485900,0.00374531,93465.0,93451.0,0.002]
[1745426486106,0.13101209,93464.0,93451.0,0.002]
[1745426486320,0.0491,93462.0,93451.0,0.002]
[1745426486575,0.11063561,93461.0,93451.0,0.002]
[1745426486940,0.10689014,93461.0,93451.0,0.002]
[1745426487137,0.04944571,93460.0,93451.0,0.002]
[1745426487368,0.12984592,93459.0,93451.0,0.002]
[1745426487727,0.11098593,93458.0,93451.0,0.002]
[1745426487926,0.10689014,93457.0,93451.0,0.002]
[1745426488131,0.00374582,93456.0,93451.0,0.002]
[1745426488307,0.10689014,93455.0,93451.0,0.002]
[1745426488480,0.14055331,93455.0,93451.0,0.002]
[1745426489893,0.10689014,93455.0,93451.0,0.002]
[1745426490313,0.10728,93456.0,93451.0,0.002]
[1745426490874,0.10728,93456.0,93454.0,0.00085]
[1745426491091,0.10728,93456.0,93455.0,0.34]
[1745426491287,0.10728,93456.0,93454.0,0.00085]
[1745426491482,0.10728,93456.0,93455.0,0.21400674]
[1745426491888,0.10728,93456.0,93454.0,0.00085]
[1745426492274,0.010728,93455.0,93454.0,0.00085]
[1745426493173,0.10728,93456.0,93454.0,0.00085]
[1745426493387,0.10728,93456.0,93454.0,0.55485785]
[1745426493736,0.10728,93456.0,93454.0,0.34085]
[1745426494187,0.36862,93473.0,93456.0,0.35070022]
[1745426494485,0.47551014,93473.0,93461.0,0.34]
[1745426494932,0.32072,93473.0,93463.0,0.01069942]
[1745426495145,0.32072,93473.0,93464.0,0.3506993]
[1745426495315,0.32072,93473.0,93464.0,0.34]
[1745426496354,0.32072,93473.0,93462.0,0.01069953]
[1745426496682,0.32072,93473.0,93461.0,0.34]
[1745426496890,0.32072,93473.0,93462.0,0.01069953]
[1745426497110,0.32072,93473.0,93461.0,0.34]
[1745426497323,0.32072,93473.0,93462.0,0.01069953]
[1745426497722,0.32072,93473.0,93463.0,0.34]
[1745426497992,0.32072,93473.0,93463.0,0.71068906]
[1745426498760,0.32072,93473.0,93467.0,0.01069896]
[1745426498955,0.32072,93473.0,93463.0,0.72138848]
[1745426499255,0.10728,93478.0,93463.0,0.71068906]
[1745426499454,0.10735373,93477.0,93463.0,0.71068906]
[1745426501378,0.1288171,93477.0,93463.0,0.71068906]
[1745426502121,0.10735373,93477.0,93463.0,0.71068906]
[1745426503711,0.11063474,93476.0,93454.0,0.00085]
[1745426506603,0.10689014,93476.0,93454.0,0.00085]
[1745426507431,0.0453,93475.0,93454.0,0.00085]
[1745426507640,0.13288351,93474.0,93454.0,0.00085]
[1745426508127,0.10689014,93474.0,93460.0,0.37068906]
[1745426508816,0.10689014,93474.0,93461.0,0.34]
[1745426511035,0.00374493,93473.0,93454.0,0.00085]
[1745426511256,0.10689014,93472.0,93461.0,0.34]
[1745426511480,0.02636787,93471.0,93461.0,0.34]
[1745426511798,0.10689014,93470.0,93461.0,0.34]
[1745426514764,0.0453,93475.0,93463.0,0.01069942]
[1745426514989,0.10689014,93474.0,93461.0,0.34]
[1745426515916,0.10689014,93474.0,93463.0,0.01069942]
[1745426516121,0.10689014,93474.0,93461.0,0.56469249]
[1745426516331,0.10689014,93474.0,93462.0,0.35069953]
[1745426516749,0.10689014,93474.0,93462.0,0.56469001]
[1745426517174,0.10689014,93474.0,93462.0,0.34]
[1745426517385,0.02598137,93473.0,93461.0,0.34]
[1745426517595,0.10689014,93472.0,93461.0,0.34]
[1745426518354,0.11063505,93472.0,93461.0,0.34]
[1745426519183,0.10689014,93472.0,93461.0,0.34]
[1745426519529,0.028954,93471.0,93461.0,0.34]
[1745426519768,0.10689014,93470.0,93461.0,0.34]
[1745426520927,0.10689014,93470.0,93460.0,0.37068906]
[1745426522525,0.10689014,93470.0,93461.0,0.34]
[1745426522951,0.00374496,93469.0,93461.0,0.34]
[1745426523183,0.13116293,93468.0,93454.0,0.00085]
[1745426523393,0.10689014,93468.0,93459.0,0.34]
[1745426523608,0.02002385,93467.0,93459.0,0.34]
[1745426523792,0.10689014,93466.0,93459.0,0.34]
[1745426524035,0.12691399,93466.0,93459.0,0.34]
[1745426524239,0.0126914,93465.0,93459.0,0.34]
[1745426524416,0.10689014,93464.0,93459.0,0.34]
[1745426524656,0.12691399,93464.0,93459.0,0.34]
[1745426525072,0.10689014,93464.0,93459.0,0.34]
[1745426525211,0.0453,93475.0,93459.0,0.34]
[1745426525212,0.0453,93475.0,93461.0,0.34]
[1745426525428,0.12691022,93474.0,93466.0,0.34]
[1745426525639,0.12691022,93474.0,93465.0,0.37068906]
[1745426525640,0.045,93485.0,93474.0,0.35069816]
[1745426525811,0.0465,93493.0,93471.0,0.34]
[1745426526011,0.02376162,93492.0,93471.0,0.34]
[1745426526211,0.02001725,93492.0,93471.0,0.56466804]
[1745426526431,0.0465,93493.0,93470.0,0.22467081]
[1745426526890,0.0465,93493.0,93473.0,0.01069827]
[1745426527089,0.0465,93493.0,93474.0,0.22465962]
[1745426527292,0.0465,93493.0,93474.0,0.01069816]
[1745426527495,0.02375313,93492.0,93442.0,0.42806963]
[1745426527703,0.02375313,93492.0,93460.0,0.01069976]
[1745426528059,0.02375313,93492.0,93461.0,0.22469138]
[1745426528060,0.10735373,93477.0,93461.0,0.22469138]
[1745426528300,0.10735373,93477.0,93461.0,0.01069965]
[1745426528503,0.10735373,93477.0,93464.0,0.21398557]
[1745426528718,0.10735373,93477.0,93465.0,0.59537061]
[1745426528912,0.10735373,93477.0,93468.0,0.01069884]
[1745426529218,0.10735373,93477.0,93470.0,0.01069861]
[1745426529426,0.00046359,93477.0,93471.0,0.2139699]
[1745426529786,0.00046359,93477.0,93472.0,0.01069839]
[1745426530159,0.00046359,93477.0,93474.0,0.01069816]
[1745426530356,0.00046359,93477.0,93470.0,0.01069861]
[1745426530560,0.00046359,93477.0,93471.0,0.0106985]
[1745426530757,0.00046359,93477.0,93472.0,0.01069839]
[1745426530958,0.00046359,93477.0,93472.0,0.22466524]
[1745426531159,0.00046359,93477.0,93472.0,0.01069839]
[1745426531373,0.00046359,93477.0,93473.0,0.2246631]
[1745426531638,0.00046359,93477.0,93454.0,0.04975]
[1745426531882,0.10735373,93477.0,93456.0,0.01070022]
[1745426532080,0.10735373,93477.0,93461.0,0.01069965]
[1745426532284,0.10735373,93477.0,93464.0,0.0106993]
[1745426532523,0.10735373,93477.0,93465.0,0.38138825]
[1745426532743,0.10735373,93477.0,93465.0,0.37068906]
[1745426532959,0.10735373,93477.0,93465.0,0.38138825]
[1745426533412,0.10735373,93477.0,93468.0,0.22467368]
[1745426533726,0.10735373,93477.0,93467.0,0.01069896]
[1745426533930,0.10735373,93477.0,93468.0,0.01069884]
[1745426534153,0.10735373,93477.0,93465.0,0.38138825]
[1745426534375,0.10735373,93477.0,93465.0,0.37068906]
[1745426534825,0.1287931,93477.0,93465.0,0.37068906]
[1745426535310,0.00046359,93477.0,93469.0,0.01069873]
[1745426535537,0.00046359,93477.0,93473.0,0.01069827]
[1745426535982,0.00046359,93477.0,93475.0,0.21396051]
[1745426536887,0.00046359,93477.0,93471.0,0.0106985]
[1745426537102,0.00046359,93477.0,93467.0,0.01069896]
[1745426537352,0.00046359,93477.0,93469.0,0.01069873]
[1745426537573,0.00046359,93477.0,93467.0,0.01069896]
[1745426538214,0.00046359,93477.0,93468.0,0.22467581]
[1745426538423,0.00046359,93477.0,93467.0,0.01069896]
[1745426538636,0.00046359,93477.0,93469.0,0.01069873]
[1745426539047,0.00046359,93477.0,93467.0,0.01069896]
[1745426539298,0.00046359,93477.0,93466.0,0.56467914]
[1745426539600,0.00046359,93477.0,93466.0,0.34]
[1745426539979,0.00046359,93477.0,93465.0,0.37068906]
[1745426540445,0.10735373,93477.0,93465.0,0.37068906]
[1745426540673,0.01073537,93476.0,93465.0,0.37068906]
[1745426540906,0.01447992,93476.0,93465.0,0.37068906]
[1745426541131,0.10735373,93477.0,93465.0,0.37068906]
[1745426544009,0.10735373,93477.0,93465.0,0.38138825]
[1745426544365,0.10735373,93477.0,93465.0,0.37068906]
[1745426544560,0.10735373,93477.0,93465.0,0.38138825]
[1745426544788,0.10689014,93476.0,93465.0,0.37068906]
[1745426545007,0.11762551,93476.0,93465.0,0.37068906]
[1745426545656,0.11762551,93476.0,93465.0,0.38138825]
[1745426546313,0.00046359,93477.0,93476.0,0.21395866]
[1745426546527,0.00046359,93477.0,93476.0,0.55593281]
[1745426546733,0.00046359,93477.0,93476.0,0.6608488]
[1745426547229,0.00046359,93477.0,93476.0,0.67538965]
[1745426548971,0.00046359,93477.0,93476.0,0.55395866]
[1745426549617,0.00046359,93477.0,93476.0,0.67538965]
[1745426550834,0.00046359,93477.0,93476.0,0.67638965]
[1745426554406,0.08679284,93507.0,93496.0,0.01069564]
[1745426554407,0.08519643,93507.0,93496.0,0.01069564]